[Event "Budapest One Week IM-A 03-2025"]
[Site "Budapest"]
[Date "2025.03.20"]
[Round "6.2"]
[White "Foldes, Marton Gabor"]
[Black "Singh, Siddharth"]
[Result "1/2-1/2"]
[Annotator "TA"]
[ECO "B50"]
[WhiteElo "2332"]
[BlackElo "2239"]
[PlyCount "143"]
[EventDate "2025.03.17"]
[EventType "tourn"]
[EventCountry "HUN"]
[SourceTitle "playchess.com"]
[Source "ChessBase"]
[SourceQuality "1"]
[TimeControl "5400+30"]

{[%evp 22,143,10,10,12,12,20,15,12,10,13,7,14,4,8,-99,-102,-154,-33,-29,-16,-14,-10,-15,-17,-29,-29,-29,-29,-29,-29,-29,-29,-29,-18,-17,-6,-41,-41,-41,-41,-41,-41,-41,-43,-108,-114,-114,-103,-77,-52,-198,-198,-198,-205,-385,-205,-205,-181,-403,-392,-385,-341,-233,0,0,0,-141,-141,-134,-134,-134,-127,-134,-134,-134,-134,-134,-134,-134,-134,-127,-38,-38,-38,-38,-8,-119,-119,-110,-118,-116,-110,-200,-14,-110,-100,-102,-8,-79,0,0,0,0,0,0,0,0,0,0,0,0,0,0,0,0,0,0,0,0,0,-8,-8,-8]} 1. e4 {[%emt 0:01:50]} c5 {[%emt 0:00:07]} 2. Nf3 {[%emt 0:00:07]} d6 {[%emt 0:00:04]} 3. c3 {[%emt 0:00:33]} Nf6 {[%emt 0:00:22]} 4. h3 {[%emt 0:00:09]} g6 {[%emt 0:06:34]} 5. Bd3 {[%emt 0:00:36]} Bg7 {[%emt 0:01:47]} 6. Bc2 {[%emt 0:00:08]} O-O {[%emt 0:02:03]} 7. d4 {[%emt 0:00:19]} cxd4 {[%emt 0:00:15]} 8. cxd4 {[%emt 0:00:07]} d5 {[%emt 0:05:04]} 9. e5 {[%emt 0:01:41]} Ne4 {[%emt 0:00:11]} 10. O-O Nc6 {[%emt 0:04:39]} 11. Nbd2 {[%emt 0:24:51]} Bf5 {[%emt 0:04:31]} 12. Re1 {[%emt 0:05:07]} Nxd2 {[%emt 0:05:56] B50: Sicilian: 2...d6, Miscellaneous.} 13. Bxd2 {[%emt 0:00:09]} Qd7 {[%emt 0:02:47]} 14. Bxf5 {[%emt 0:07:54]} Qxf5 {[%emt 0:00:07]} 15. Qb3 {[%emt 0:00:10]} Qd7 {[%emt 0:01:19]} 16. Rac1 {[%emt 0:03:07]} Rac8 $146 {[%emt 0:01:28]} (16... e6 17. Rc2 f6 18. exf6 Bxf6 19. Bc3 Rae8 20. Rce2 Bd8 21. Qd1 Rxf3 22. gxf3 Bc7 {0-1 Gentilleau,J (2209)-Halldorsson,H (2226) EU-Cup 22nd Fuegen 2006 (6.2)}) 17. a4 {[%emt 0:06:21]} Rc7 {[%emt 0:07:34]} 18. Rc5 {[%emt 0:15:03]} (18. Rc3 $11) 18... Nxd4 $1 $17 {[%emt 0:02:57]} 19. Qxd5 {[%emt 0:19:33]} (19. Rxc7 Nxf3+ 20. Qxf3 Qxc7 21. Qe3 (21. Qxd5 Rd8 $17)) 19... Nxf3+ {[%emt 0:05:01]} (19... b6 $17 20. Qxd4 (20. Qxd7 $2 Rxd7 21. Nxd4 bxc5 $19) 20... bxc5) 20. gxf3 $15 {[%emt 0:00:01]} Qxd5 {[%emt 0:01:34]} 21. Rxd5 {[%emt 0:00:01]} e6 {[%emt 0:01:01]} 22. Rd4 {[%emt 0:02:59]} Rfc8 {[%emt 0:00:33]} 23. Bc3 {[%emt 0:02:19]} Kf8 {[%emt 0:00:29]} 24. f4 {[%emt 0:04:26]} Ke8 {[%emt 0:00:14]} 25. Kg2 {[%emt 0:01:50]} Rd8 {[%emt 0:03:08]} 26. Red1 {[%emt 0:00:51]} Rcd7 {[%emt 0:00:36]} 27. Kf3 {[%emt 0:00:37]} Bf8 {[%emt 0:00:11]} 28. Ke4 {[%emt 0:01:24]} a6 {[%emt 0:06:59]} 29. Ba5 {[%emt 0:02:08]} Rxd4+ {[%emt 0:00:11]} 30. Rxd4 {[%emt 0:00:00]} Rxd4+ {[%emt 0:00:23]} 31. Kxd4 {[%emt 0:00:01][%mdl 4096] Endgame KB-KB} Kd7 {[%emt 0:00:02]} 32. Kc4 {[%emt 0:01:04]} Kc6 {[%emt 0:03:26]} 33. Bd2 {[%emt 0:00:13]} (33. Be1 $15) 33... b5+ $17 {[%emt 0:02:05]} 34. axb5+ {[%emt 0:00:02]} axb5+ {[%emt 0:00:03]} 35. Kd3 {[%emt 0:00:06]} Kd5 {[%emt 0:00:13]} 36. b4 {[%emt 0:00:24]} ({White should try} 36. f3 $15) 36... Be7 $19 {[%emt 0:03:14]} 37. f3 {[%emt 0:02:03]} Bh4 {[%emt 0:02:55]} 38. Kc3 $2 {[%emt 0:00:34]} (38. Be3 {is the only way for White.}) 38... Bg3 {[%emt 0:03:57]} (38... g5 $142 {and ...Bg3 should not be overlooked} 39. fxg5 Kxe5) 39. Kd3 {[%emt 0:00:07]} g5 {[%emt 0:03:05]} 40. fxg5 {[%emt 0:00:14]} (40. f5) 40... Kxe5 {[%emt 0:00:04]} 41. Be3 {[%emt 0:01:08]} Bf4 {[%emt 0:05:03]} 42. h4 {[%emt 0:00:38]} Bxe3 $2 {[%emt 0:07:23]} (42... Bg3 $19 43. h5 Kf5) 43. Kxe3 {[%emt 0:00:01] KP-KP} Kf5 {[%emt 0:00:01]} 44. Kd4 {[%emt 0:00:57]} (44. Kf2 $1 $11) 44... Kf4 $17 {[%emt 0:00:01]} 45. Kc5 {[%emt 0:00:06]} Kxf3 {[%emt 0:00:03] ( -> ...e5)} 46. Kxb5 {[%emt 0:00:01] K3P-K3P} e5 $1 {[%emt 0:00:04] ( -> ...e4)} 47. Kc5 {[%emt 0:01:25]} e4 {[%emt 0:00:02] ( -> ...e3)} 48. b5 {[%emt 0:00:02]} e3 {[%emt 0:00:02] ( -> ...e2)} 49. b6 {[%emt 0:00:54]} e2 {[%emt 0:00:04]} 50. b7 {[%emt 0:00:13]} e1=Q {[%emt 0:03:43]} (50... e1=B $2 51. b8=Q $18 (51. b8=B $2 Bxh4 52. Kd6 Bxg5 $19)) 51. b8=Q {[%emt 0:00:29] [#] KQ-KQ Against Qe8} Qe3+ {[%emt 0:00:27]} (51... Qxh4 52. Qb3+ Kg4 53. Qc4+ Kxg5 54. Qxf7 $14) (51... Kg4 $1 $17 52. Qd8 Qf2+ (52... Qxh4 53. Qd7+ Kxg5 54. Qxf7 $11) 53. Kb5 Qf5+ (53... Qxh4 54. Qd7+ Kg3 55. Qd3+ Kh2 56. Kc6 $11) 54. Kb6 Qg6+ (54... Kxh4 55. g6+ Kh3 56. gxh7 $11) 55. Ka7 Kxh4 56. Qd4+ Kh5 (56... Kxg5 57. Qd2+ Kf6 58. Qd6+ Kg7 59. Qe7 $17)) 52. Kc6 $15 {[%emt 0:00:09]} Qe6+ {[%emt 0:05:18]} 53. Kc5 $1 {[%emt 0:00:55]} Qe7+ {[%emt 0:00:19]} 54. Kd5 {[%emt 0:00:47]} (54. Qd6 $11 Qe3+ 55. Kb5) 54... Qe4+ $17 {[%emt 0:00:03]} 55. Kc5 {[%emt 0:00:08]} Kg4 $1 {[%emt 0:00:06]} ({But not} 55... Qxh4 $6 56. Qb3+ Kg4 57. Qc4+ Kxg5 58. Qxf7 $11) 56. Qh2 {[%emt 0:00:51]} Qe3+ {[%emt 0:00:04]} 57. Kd5 {[%emt 0:00:29] [#]} (57. Kd6 $17) 57... Qf3+ $2 {[%emt 0:00:27]} ({Better is} 57... Qe1 $1 $19 58. Kd6 Qg3+ (58... Qxh4 59. Qe2+ Kxg5 60. Qe7+ Kg4 61. Qxf7 $11) 59. Qxg3+ Kxg3) 58. Ke5 {[%emt 0:00:24]} (58. Kd6 $1 $11) 58... Qf5+ {[%emt 0:01:33]} 59. Kd4 {[%emt 0:00:10]} Kh5 {[%emt 0:01:37]} (59... Qd7+ $17 60. Kc3 Qc6+ 61. Kb4 Qb6+ 62. Ka4 Qd4+ 63. Ka5 Qa7+ 64. Kb5 Qb7+ 65. Kc5 Qe7+ 66. Kc6 Qe8+ 67. Kb6 Qe3+ 68. Kb7 Kh5) 60. Ke3 {[%emt 0:00:11]} (60. Qh1 $11) 60... Qg4 {[%emt 0:00:05]} (60... Qe6+ $17 61. Kd4 Qe1) 61. Qh1 $11 {[%emt 0:00:50] The position is equal.} Qg3+ {[%emt 0:00:47]} 62. Ke4 {[%emt 0:00:19]} Kg4 {[%emt 0:00:04]} 63. Qf1 {[%emt 0:01:09]} Kxh4 {[%emt 0:02:24]} 64. Qxf7 {[%emt 0:00:10]} Qe1+ {[%emt 0:00:03]} 65. Kd4 {[%emt 0:00:36]} Qd2+ {[%emt 0:00:08]} 66. Ke4 {[%emt 0:00:35]} Qe1+ {[%emt 0:00:45]} 67. Kd4 {[%emt 0:00:07]} Qd1+ {[%emt 0:00:18]} 68. Ke4 {[%emt 0:00:17]} Qb1+ {[%emt 0:00:35]} 69. Ke3 {[%emt 0:00:55]} Kxg5 {[%emt 0:00:40]} 70. Qf4+ {[%emt 0:00:12]} Kg6 {[%emt 0:00:04]} 71. Qe4+ {[%emt 0:00:18]} Qxe4+ {[%emt 0:00:06]} 72. Kxe4 {Weighted Error Value: White=0.41/Black=0.31  Missed win:     	---       	Black=2      Mistake:       	White=11    	Black=5      Inaccurate:     	White=1     	Black=1      OK:         	White=18    	Black=21     Best:        	White=10    	Black=7      Strong:       	White=1     	Black=3} 1/2-1/2

[Event "Budapest One Week IM-A 03-2025"]
[Site "Budapest"]
[Date "2025.03.20"]
[Round "6.4"]
[White "Rydstrom, Tom"]
[Black "Krizsany, Laszlo"]
[Result "1/2-1/2"]
[Annotator "TA"]
[ECO "B10"]
[WhiteElo "2301"]
[BlackElo "2287"]
[PlyCount "32"]
[EventDate "2025.03.17"]
[EventType "tourn"]
[EventCountry "HUN"]
[SourceTitle "playchess.com"]
[Source "ChessBase"]
[SourceQuality "1"]
[TimeControl "5400+30"]

{[%evp 9,32,-1,8,0,11,13,15,14,25,-2,10,14,14,8,30,28,27,32,31,15,11,11,25,-5,-1]} 1. e4 {[%emt 0:05:07]} c6 {[%emt 0:00:15]} 2. Nf3 {[%emt 0:00:06][%cal Bg1f3,Bf3e1,Be1d3][%mdl 32]} d5 {[%emt 0:00:08]} 3. d3 {[%emt 0:00:04][%cal Bd2d3,Bd3e4,Be4e5][%mdl 32]} dxe4 {[%emt 0:01:54]} 4. dxe4 {[%emt 0:00:07]} Qxd1+ {[%emt 0:00:05]} 5. Kxd1 {[%emt 0:00:02]} g6 {[%emt 0:04:46]} 6. Nbd2 {[%emt 0:00:26] B10: Caro-Kann: 2 d3 and 2 c4.} Bg7 {[%emt 0:00:37]} 7. Ne1 {[%emt 0:00:40]} f5 {[%emt 0:05:33]} 8. Nd3 $146 {[%emt 0:03:15]} (8. f3 Nf6 9. Bd3 Na6 10. exf5 Bxf5 11. Bxf5 gxf5 12. Nd3 Nd5 13. Re1 O-O-O 14. Nc4 {0-1 Chigaev,M (2588)-Vachier Lagrave,M (2778) Titled Tuesday intern op 14th July f blitz 2020 (3.1)}) 8... Nf6 {[%emt 0:02:27]} 9. e5 {[%emt 0:08:49]} Ng4 {[%emt 0:15:21]} (9... Ne4 $5) 10. Nf3 $1 {[%emt 0:01:20]} Nd7 {[%emt 0:00:43]} 11. Bf4 {[%emt 0:01:04]} g5 {[%emt 0:05:22]} 12. Bxg5 {[%emt 0:03:49]} Ndxe5 {[%emt 0:00:23]} 13. Nfxe5 {[%emt 0:01:34]} Nxe5 {[%emt 0:00:09]} 14. Nxe5 {[%emt 0:10:12]} Bxe5 {[%emt 0:00:03]} 15. c3 {[%emt 0:05:16]} Rg8 {[%emt 0:05:10]} 16. f4 {[%emt 0:02:49][%cal Od1c2]} Be6 {[%emt 0:01:53] Not much happened in this game.   Weighted Error Value: White=0.05 (flawless) /Black=0.07 (flawless)   Inaccurate:     	White=1     	---        OK:         	White=5     	Black=4      Best:        	---       	Black=1      Strong:       	White=1     	---} 1/2-1/2

[Event "Budapest One Week IM-A 03-2025"]
[Site "Budapest"]
[Date "2025.03.20"]
[Round "6.5"]
[White "Tscheuschner, Georg"]
[Black "Nakahara, Kan"]
[Result "1/2-1/2"]
[Annotator "TA"]
[ECO "A15"]
[WhiteElo "2236"]
[BlackElo "2113"]
[PlyCount "113"]
[EventDate "2025.03.17"]
[EventType "tourn"]
[EventCountry "HUN"]
[SourceTitle "playchess.com"]
[Source "ChessBase"]
[SourceQuality "1"]
[TimeControl "5400+30"]

{[%evp 11,113,7,9,0,0,0,3,0,9,16,39,36,30,37,35,30,39,18,31,0,0,0,0,0,0,0,0,0,10,5,11,6,14,6,6,6,22,10,6,10,71,68,71,68,63,61,70,72,77,57,60,60,76,70,75,62,66,54,57,50,77,71,82,79,89,88,91,64,68,70,67,48,50,51,52,53,54,51,51,7,9,0,0,0,0,0,0,0,0,0,0,0,0,0,0,0,0,0,0,0,0,0,0,-8]} 1. c4 {[%emt 0:01:26]} Nf6 {[%emt 0:00:06]} 2. Nf3 {[%emt 0:00:07]} e6 {[%emt 0:00:12]} 3. Nc3 {[%emt 0:00:06]} d5 {[%emt 0:00:11]} 4. e3 {[%emt 0:00:10]} Be7 {[%emt 0:00:33]} 5. b3 {[%emt 0:00:06]} b6 {[%emt 0:01:49]} 6. Bb2 {[%emt 0:01:56]} O-O {[%emt 0:02:29]} 7. cxd5 {[%emt 0:00:19] A13: English Opening: 1...e6.} exd5 {[%emt 0:01:05]} 8. d4 {[%emt 0:00:14]} Nbd7 {[%emt 0:06:24]} 9. Bd3 {[%emt 0:00:22]} a6 {[%emt 0:02:10]} 10. O-O {[%emt 0:00:20]} Bd6 {[%emt 0:02:10]} 11. e4 {[%emt 0:14:48]} dxe4 {[%emt 0:01:23]} 12. Nxe4 {[%emt 0:00:02]} Be7 $146 {[%emt 0:04:19]} (12... Nxe4 13. Bxe4 Rb8 14. Ne5 Bxe5 15. dxe5 Nc5 16. Bc2 Qxd1 17. Rfxd1 Bg4 18. f3 Be6 {½-½ Adhiban,B (2689)-Usmanov,V (2450) PRO League Stage rapid 2019 (6)}) 13. Ng3 {[%emt 0:16:59]} g6 {[%emt 0:01:52]} 14. Re1 {[%emt 0:05:36]} Bb4 {[%emt 0:03:31]} 15. Be4 {[%emt 0:12:08]} Nxe4 {[%emt 0:05:37]} 16. Rxe4 {[%emt 0:00:13]} Nf6 {[%emt 0:00:34]} 17. d5 $1 {[%emt 0:00:51][%cal Od1d4]} Nxe4 {[%emt 0:15:25]} 18. Nxe4 {[%emt 0:00:14] and Nf6+ should not be overlooked} f6 $1 {[%emt 0:01:32]} 19. Qd4 $1 {[%emt 0:02:22][%csl LRb4,LRf6]} Bc5 {[%emt 0:02:34]} 20. Nxf6+ {[%emt 0:01:07]} (20. Nxc5 bxc5 21. Qc4 Qd6 $17) 20... Rxf6 {[%emt 0:00:09]} 21. Qxf6 {[%emt 0:00:06]} Qxf6 {[%emt 0:00:02]} 22. Bxf6 {[%emt 0:00:06]} Bb7 {[%emt 0:01:34]} 23. Rd1 $36 {[%emt 0:05:51][%mdl 2048] White is more active.} Re8 {[%emt 0:01:32]} 24. Ne5 {[%emt 0:05:26]} Bd6 {[%emt 0:07:49]} 25. Nc4 {[%emt 0:05:55]} Bc5 {[%emt 0:04:49] [#]} (25... Re2 $11) 26. Kf1 $1 $16 {[%emt 0:07:38]} b5 {[%emt 0:05:14] [#]} 27. d6 $1 {[%emt 0:05:15]} cxd6 {[%emt 0:05:00]} (27... bxc4 28. d7 Rf8 29. d8=Q (29. d8=B cxb3 30. axb3 Re8 $11) 29... Rxd8 30. Rxd8+ Kf7 31. Rd7+ Kxf6 32. Rxc7 cxb3 33. axb3 $18 (33. Rxb7 $2 {too greedy.} bxa2 34. Ke2 a1=Q $19) (33. Rxc5 $2 b2 $19)) (27... Bxd6 28. Nxd6) 28. Nxd6 {[%emt 0:00:02]} Bxd6 {[%emt 0:00:21]} 29. Rxd6 $14 {[%emt 0:00:01][%mdl 4096] Endgame KRB-KRB. White is a pawn up.} Bc8 {[%emt 0:00:27]} 30. Bg5 {[%emt 0:02:19]} Kf7 {[%emt 0:02:19]} 31. Rf6+ {[%emt 0:00:08]} Kg7 {[%emt 0:01:18]} 32. Rc6 {[%emt 0:00:02]} Bf5 {[%emt 0:01:56]} 33. Rc7+ {[%emt 0:04:23]} (33. Rxa6 $2 {gets mated.} Bd3+ 34. Kg1 Re1#) 33... Kg8 {[%emt 0:00:12] ( -> ...Bd3+)} 34. h4 {[%emt 0:04:15]} h5 {[%emt 0:04:35]} 35. Be3 {[%emt 0:02:39]} Re4 {[%emt 0:00:20]} 36. Ra7 {[%emt 0:00:46]} Re6 {[%emt 0:00:57]} 37. Ke2 {[%emt 0:00:28]} Be4 {[%emt 0:01:06]} 38. f3 {[%emt 0:00:15]} Bf5 {[%emt 0:00:01]} 39. Kf2 {[%emt 0:00:17]} Rc6 {[%emt 0:00:11]} 40. Kg3 {[%emt 0:00:38]} b4 {[%emt 0:05:38]} 41. Rb7 {[%emt 0:00:59]} Rc2 {[%emt 0:00:39]} 42. Rxb4 {[%emt 0:00:25]} Rxa2 {[%emt 0:00:01]} 43. Rd4 {[%emt 0:01:17]} a5 {[%emt 0:02:30]} 44. Bd2 {[%emt 0:00:56]} Be6 {[%emt 0:02:32]} 45. Kf4 {[%emt 0:01:08]} Bxb3 {[%emt 0:01:08] The position is equal.} 46. Ke5 {[%emt 0:00:14]} Kf7 {[%emt 0:00:48]} 47. g4 {[%emt 0:02:24]} hxg4 {[%emt 0:00:50]} 48. fxg4 {[%emt 0:00:06]} a4 {[%emt 0:00:50]} 49. Bb4 {[%emt 0:00:32]} Re2+ {[%emt 0:02:03]} 50. Kf4 {[%emt 0:00:03]} Bc2 {[%emt 0:00:46]} 51. Rd7+ {[%emt 0:00:31]} Ke8 {[%emt 0:00:17]} 52. Rd4 {[%emt 0:00:44]} Kf7 {[%emt 0:00:23]} 53. Ba3 {[%emt 0:00:55]} Rh2 {[%emt 0:00:56]} 54. Kg5 {[%emt 0:00:33]} Rg2 {[%emt 0:00:11]} 55. Rd7+ {[%emt 0:00:41]} Ke6 {[%emt 0:01:06]} 56. Ra7 {[%emt 0:00:14]} Kd5 {[%emt 0:00:27]} 57. h5 {[%emt 0:00:16] Weighted Error Value: White=0.05 (flawless) /Black=0.06 (flawless)   Mistake:       	---       	Black=1      Inaccurate:     	White=2     	Black=1      OK:         	White=14    	Black=23     Best:        	White=1     	Black=3      Strong:       	White=3     	Black=1} 1/2-1/2

[Event "Budapest One Week IM-A 03-2025"]
[Site "Budapest"]
[Date "2025.03.21"]
[Round "7.1"]
[White "Nakahara, Kan"]
[Black "Turzo, Attila"]
[Result "1-0"]
[Annotator "TA"]
[ECO "C79"]
[WhiteElo "2113"]
[BlackElo "2272"]
[PlyCount "69"]
[EventDate "2025.03.17"]
[EventType "tourn"]
[EventCountry "HUN"]
[SourceTitle "playchess.com"]
[Source "ChessBase"]
[SourceQuality "1"]
[TimeControl "5400+30"]

{[%evp 18,69,57,58,64,33,55,33,36,34,36,16,21,-39,-27,-65,-41,-48,62,46,77,92,120,-79,47,16,27,35,130,95,165,145,154,142,237,237,213,213,233,202,152,180,149,143,298,262,268,311,1279,1279,1279,1266,1279,1241]} 1. e4 {[%emt 0:00:21]} e5 {[%emt 0:00:10]} 2. Nf3 {[%emt 0:00:12]} Nc6 {[%emt 0:00:07]} 3. Bb5 {[%emt 0:00:08]} a6 {[%emt 0:00:17]} 4. Ba4 {[%emt 0:00:02]} Nf6 {[%emt 0:00:08]} 5. O-O {[%emt 0:00:04]} d6 {[%emt 0:00:07]} 6. Re1 {[%emt 0:00:59]} Bd7 {[%emt 0:00:12]} 7. c3 {[%emt 0:00:55]} Be7 {[%emt 0:01:24]} 8. h3 {[%emt 0:03:01]} O-O {[%emt 0:00:14]} 9. d4 {[%emt 0:02:05]} Re8 {[%emt 0:01:34]} 10. Nbd2 {[%emt 0:04:23]} Bf8 {[%emt 0:00:33] C87: Closed Ruy Lopez: Steinitz-type lines after 6 Re1 d6.} 11. d5 {[%emt 0:02:18]} Nb8 {[%emt 0:00:45]} 12. Bc2 {[%emt 0:02:14]} a5 $146 {[%emt 0:00:45] White is slightly better.} ({Predecessor:} 12... Nh5 13. Nf1 g6 14. a4 a5 15. b4 Na6 16. b5 Nc5 17. N1d2 b6 18. Nb3 Nb7 {½-½ Dios,I (1932)-Toth,I (1894) HUN-chT2 Breyer 1617 2016 (1.7)}) 13. Nf1 {[%emt 0:02:15]} Na6 {[%emt 0:01:29]} 14. g4 {[%emt 0:16:57]} h5 {[%emt 0:07:20]} 15. N3h2 {[%emt 0:03:52]} (15. g5 $11 Nh7 16. h4) 15... hxg4 $15 {[%emt 0:00:43]} 16. hxg4 {[%emt 0:00:39]} Nh7 {[%emt 0:00:26]} 17. Re3 {[%emt 0:07:13]} Qh4 {[%emt 0:06:18]} (17... Be7 $15) 18. Kg2 {[%emt 0:04:15]} Ng5 {[%emt 0:01:41]} 19. Rg3 {[%emt 0:00:55]} Be7 {[%emt 0:00:09]} 20. Nd2 $2 {[%emt 0:04:55] [#]} (20. Nf3 $16 {and life is bright.} Nxf3 21. Qxf3) 20... Nc5 {[%emt 0:00:48]} (20... Qh7 $1 $17) 21. Ndf3 $14 {[%emt 0:05:08]} Qh6 {[%emt 0:00:23][%cal Ob7b5]} 22. Qe2 {[%emt 0:05:59]} f6 {[%emt 0:15:07]} (22... c6 $14) 23. Bd2 $36 {[%emt 0:09:31][%mdl 2048] White is in control.} Qh7 {[%emt 0:03:05]} (23... Kf7 $16) 24. b4 {[%emt 0:02:18]} axb4 {[%emt 0:13:39]} 25. cxb4 {[%emt 0:00:01]} Ba4 {[%emt 0:00:11]} (25... Na4 $16 26. Rh1 b5) 26. Bxa4 {[%emt 0:07:49]} Nxa4 {[%emt 0:00:46]} 27. Nxg5 {[%emt 0:00:06]} fxg5 {[%emt 0:00:07]} 28. Rh1 {[%emt 0:01:13]} Nb6 {[%emt 0:01:28]} 29. Bc1 {[%emt 0:04:21]} Qg6 {[%emt 0:06:07]} 30. Nf3 {[%emt 0:02:08] aiming for Rh5.} Nd7 $2 {[%emt 0:01:05] [#] Loses the game.} (30... c6 $16) 31. Rgh3 $18 {[%emt 0:00:27][%cal Bg3h3,Bh3h5,Bh5h8,Bh8a8][%mdl 32]} Rf8 {[%emt 0:03:39]} 32. Rh5 {[%emt 0:01:27]} ({Resist} 32. Rh8+ $6 Kf7 33. R8h5 Ke8 $18) 32... Rxf3 $2 {[%emt 0:05:57]} (32... Qe8 33. R1h3 (33. Bxg5 Nf6 $18) (33. Nxg5 Bxg5 34. Bxg5 Qg6 $18) 33... Kf7 34. Nxg5+ (34. Bxg5 Rg8 $18) 34... Bxg5 35. Bxg5 Kg8 36. Rh8+ Kf7) 33. Rh8+ {[%emt 0:00:31] White is clearly winning.} Kf7 {[%emt 0:00:05]} 34. Qxf3+ {[%emt 0:00:05]} Nf6 {[%emt 0:00:06]} 35. Rxa8 {[%emt 0:00:12] Weighted Error Value: White=0.21 (precise) /Black=0.62  Mistake:       	White=2     	Black=7      Inaccurate:     	White=2     	Black=2      OK:         	White=8     	Black=4      Best:        	White=1     	Black=1} 1-0

[Event "Budapest One Week IM-A 03-2025"]
[Site "Budapest"]
[Date "2025.03.21"]
[Round "7.2"]
[White "Krizsany, Laszlo"]
[Black "Tscheuschner, Georg"]
[Result "1/2-1/2"]
[Annotator "TA"]
[ECO "A01"]
[WhiteElo "2287"]
[BlackElo "2236"]
[PlyCount "36"]
[EventDate "2025.03.17"]
[EventType "tourn"]
[EventCountry "HUN"]
[SourceTitle "playchess.com"]
[Source "ChessBase"]
[SourceQuality "1"]
[TimeControl "5400+30"]

{[%evp 9,23,17,22,-19,1,1,4,12,12,14,17,22,19,27,40,14]} 1. b3 {[%emt 0:00:04]} d5 {[%emt 0:00:47]} 2. Bb2 {[%emt 0:00:05]} Nf6 {[%emt 0:00:05]} 3. e3 {[%emt 0:00:13]} e6 {[%emt 0:00:53]} 4. Nf3 {[%emt 0:00:44][%cal Bg1f3,Bf3d4,Bd4b5][%mdl 32]} c5 {[%emt 0:02:02]} 5. d4 {[%emt 0:04:05]} cxd4 {[%emt 0:00:59]} 6. Nxd4 {[%emt 0:01:50] D05: Colle System with ...e6.} Nc6 {[%emt 0:03:45]} 7. Be2 {[%emt 0:00:45]} Bd6 {[%emt 0:02:29]} 8. O-O $1 {[%emt 0:03:56] The position is equal.} e5 {[%emt 0:10:00]} 9. Nb5 {[%emt 0:02:52]} Be7 {[%emt 0:00:43]} 10. c4 {[%emt 0:01:04] [#] And now cxd5 would win.} Be6 {[%emt 0:05:02]} 11. cxd5 {[%emt 0:02:01]} Nxd5 {[%emt 0:00:09]} 12. N1c3 {[%emt 0:01:34] A rather calm draw.   Weighted Error Value: White=0.01 (flawless) /Black=0.05 (flawless)   Inaccurate:     	White=1     	---        OK:         	White=3     	---        Best:        	White=1     	---        Strong:       	White=1     	---} {Predecessor:} Nxc3 $146 13. Nxc3 O-O 14. Qxd8 Rfxd8 15. Rfd1 f5 16. Rxd8+ Rxd8 17. Rd1 Rxd1+ 18. Bxd1 a6 {1-0 Shermuhammadov,S (2063)-Madaminov,M (2258) UZB-ch Tashkent 2021 (6)} 1/2-1/2